[Event "Late-Titled-Tuesday-Blitz-August-29-2023"]
[Site "Chess.com"]
[Date "2023.08.29"]
[Round "3"]
[White "mishanick"]
[Black "Alexander_Moskalenko"]
[Result "1-0"]
[WhiteElo "3141"]
[BlackElo "2827"]
[TimeControl "180+1"]
[EndTime "14:29:07 PDT"]
[Termination "mishanick won by resignation"]

1. d4 {[%clk 0:03:00.9]} 1... Nf6 {[%clk 0:02:56.6]} 2. c4 {[%clk 0:03:00.6]}
2... e6 {[%clk 0:02:56.9]} 3. Nc3 {[%clk 0:03:01.2]} 3... Bb4 {[%clk 0:02:50.4]}
4. e3 {[%clk 0:03:01.5]} 4... O-O {[%clk 0:02:45.2]} 5. Bd3 {[%clk 0:03:01.1]}
5... c5 {[%clk 0:02:25.7]} 6. Nf3 {[%clk 0:03:00.6]} 6... Bxc3+ {[%clk
0:02:24.1]} 7. bxc3 {[%clk 0:03:00.5]} 7... d6 {[%clk 0:02:25]} 8. O-O {[%clk
0:02:51.9]} 8... Nc6 {[%clk 0:02:25.1]} 9. Nd2 {[%clk 0:02:50.6]} 9... e5 {[%clk
0:02:25.3]} 10. d5 {[%clk 0:02:49.9]} 10... Ne7 {[%clk 0:02:25.1]} 11. Qc2
{[%clk 0:02:45.5]} 11... Re8 {[%clk 0:02:09.5]} 12. h3 {[%clk 0:02:42.3]} 12...
Ng6 {[%clk 0:01:56]} 13. f4 {[%clk 0:02:41]} 13... exf4 {[%clk 0:01:55.7]} 14.
exf4 {[%clk 0:02:41.9]} 14... Bd7 {[%clk 0:01:54.5]} 15. Nf3 {[%clk 0:02:40.2]}
15... Nh5 {[%clk 0:01:45.2]} 16. Ng5 {[%clk 0:02:29.1]} 16... Ng3 {[%clk
0:01:41.2]} 17. Rf3 {[%clk 0:02:25.4]} 17... Nh5 {[%clk 0:01:11.6]} 18. Bd2
{[%clk 0:02:00.6]} 18... Qa5 {[%clk 0:01:03]} 19. Raf1 {[%clk 0:01:49.3]} 19...
b5 {[%clk 0:00:52.3]} 20. cxb5 {[%clk 0:01:46]} 20... c4 {[%clk 0:00:52.5]} 21.
Bxc4 {[%clk 0:01:16]} 21... Bxb5 {[%clk 0:00:52.7]} 22. Bxb5 {[%clk 0:01:14.5]}
22... Qxb5 {[%clk 0:00:53.6]} 23. c4 {[%clk 0:01:15]} 23... Rac8 {[%clk
0:00:41.7]} 24. Rc1 {[%clk 0:00:37.7]} 24... Qb6+ {[%clk 0:00:38]} 25. Kh2
{[%clk 0:00:37.3]} 25... Re2 {[%clk 0:00:35.9]} 26. Qd3 {[%clk 0:00:32.4]} 26...
Rce8 {[%clk 0:00:35]} 27. Rd1 {[%clk 0:00:20.6]} 27... h6 {[%clk 0:00:30.4]} 28.
Ne6 {[%clk 0:00:11.3]} 28... Rxd2 {[%clk 0:00:06.3]} 29. Rxd2 {[%clk 0:00:11.3]}
29... Nf6 {[%clk 0:00:06.1]} 30. Nd4 {[%clk 0:00:10.2]} 30... Re1 {[%clk
0:00:05.9]} 31. Re2 {[%clk 0:00:09.5]} 31... Ra1 {[%clk 0:00:05.4]} 32. Rff2
{[%clk 0:00:05.9]} 32... Qa5 {[%clk 0:00:04]} 33. Qd2 {[%clk 0:00:05.1]} 33...
Qa3 {[%clk 0:00:03.6]} 34. Qe3 {[%clk 0:00:04.8]} 34... Qa4 {[%clk 0:00:04.2]}
35. Nf3 {[%clk 0:00:03.7]} 35... Qxc4 {[%clk 0:00:03.7]} 36. Qd4 {[%clk
0:00:03.5]} 36... Qxd4 {[%clk 0:00:03.2]} 37. Nxd4 {[%clk 0:00:04.4]} 37... Nxd5
{[%clk 0:00:04]} 38. g3 {[%clk 0:00:04]} 38... Nge7 {[%clk 0:00:04.1]} 39. Nb5
{[%clk 0:00:03.6]} 39... a6 {[%clk 0:00:04]} 40. Nxd6 {[%clk 0:00:04]} 40... Nc6
{[%clk 0:00:04.6]} 41. Rd2 {[%clk 0:00:04]} 41... Ne3 {[%clk 0:00:04.1]} 42.
Rde2 {[%clk 0:00:03.5]} 42... Nf1+ {[%clk 0:00:04.6]} 43. Kg2 {[%clk 0:00:03.6]}
43... Nd4 {[%clk 0:00:04.7]} 44. Re8+ {[%clk 0:00:03.8]} 44... Kh7 {[%clk
0:00:04.7]} 45. Rxf1 {[%clk 0:00:04.5]} 45... Rxa2+ {[%clk 0:00:05.6]} 46. Rf2
{[%clk 0:00:05.1]} 46... Ra4 {[%clk 0:00:05.9]} 47. Nxf7 {[%clk 0:00:05.5]}
47... Nf5 {[%clk 0:00:05.9]} 48. Rh8+ {[%clk 0:00:06]} 48... Kg6 {[%clk
0:00:06]} 49. Ne5+ {[%clk 0:00:06.9]} 49... Kf6 {[%clk 0:00:06.9]} 50. Rf8+
{[%clk 0:00:07.3]} 50... Ke6 {[%clk 0:00:07.1]} 51. Re2 {[%clk 0:00:07.8]} 51...
Nd4 {[%clk 0:00:07.5]} 52. Rf2 {[%clk 0:00:08]} 52... Ra3 {[%clk 0:00:07.6]} 53.
Re8+ {[%clk 0:00:08.4]} 53... Kf6 {[%clk 0:00:07.7]} 54. g4 {[%clk 0:00:08.9]}
54... g6 {[%clk 0:00:07.2]} 55. Rf8+ {[%clk 0:00:08.1]} 55... Ke6 {[%clk
0:00:06.8]} 56. Rg8 {[%clk 0:00:08.4]} 56... g5 {[%clk 0:00:06.2]} 57. Rg6+
{[%clk 0:00:08.7]} 57... Kd5 {[%clk 0:00:06.9]} 58. Nf3 {[%clk 0:00:09.2]} 58...
Ne6 {[%clk 0:00:06.5]} 59. Rxe6 {[%clk 0:00:08.1]} 59... Kxe6 {[%clk 0:00:06.8]}
60. fxg5 {[%clk 0:00:09]} 60... hxg5 {[%clk 0:00:07.6]} 61. Nxg5+ {[%clk
0:00:09.9]} 61... Ke5 {[%clk 0:00:08.5]} 62. h4 {[%clk 0:00:10.6]} 62... Kd4
{[%clk 0:00:08.7]} 63. h5 {[%clk 0:00:10.9]} 63... Ra5 {[%clk 0:00:09.1]} 64.
Nf7 {[%clk 0:00:10.6]} 64... Ke4 {[%clk 0:00:08.2]} 65. h6 {[%clk 0:00:11.2]}
65... Ra3 {[%clk 0:00:07.2]} 66. h7 {[%clk 0:00:11.7]} 1-0

[Event "Late-Titled-Tuesday-Blitz-August-29-2023"]
[Site "Chess.com"]
[Date "2023.08.29"]
[Round "3"]
[White "zeitnot2006"]
[Black "Duhless"]
[Result "0-1"]
[WhiteElo "2747"]
[BlackElo "3029"]
[TimeControl "180+1"]
[EndTime "14:29:07 PDT"]
[Termination "Duhless won on time"]

1. e4 {[%clk 0:03:00.9]} 1... c6 {[%clk 0:03:00]} 2. d3 {[%clk 0:03:00.3]} 2...
d5 {[%clk 0:03:00.9]} 3. Nd2 {[%clk 0:03:00.9]} 3... e5 {[%clk 0:02:58.4]} 4.
Ngf3 {[%clk 0:02:59.9]} 4... Bd6 {[%clk 0:02:58]} 5. g3 {[%clk 0:03:00.1]} 5...
Nf6 {[%clk 0:02:57.5]} 6. Bg2 {[%clk 0:03:00.2]} 6... O-O {[%clk 0:02:58]} 7.
O-O {[%clk 0:03:00.6]} 7... Re8 {[%clk 0:02:58.9]} 8. Qe2 {[%clk 0:03:00.1]}
8... Nbd7 {[%clk 0:02:58.4]} 9. c3 {[%clk 0:03:00.6]} 9... a6 {[%clk 0:02:58]}
10. a4 {[%clk 0:02:59.3]} 10... a5 {[%clk 0:02:58.1]} 11. Rd1 {[%clk 0:02:59.4]}
11... Qc7 {[%clk 0:02:55.5]} 12. Nf1 {[%clk 0:02:59.4]} 12... Bf8 {[%clk
0:02:54.1]} 13. Qc2 {[%clk 0:02:57.9]} 13... dxe4 {[%clk 0:02:52.9]} 14. dxe4
{[%clk 0:02:57.6]} 14... b5 {[%clk 0:02:53.8]} 15. axb5 {[%clk 0:02:50.4]} 15...
cxb5 {[%clk 0:02:53.5]} 16. Ne3 {[%clk 0:02:47.5]} 16... Bb7 {[%clk 0:02:45.8]}
17. Nd5 {[%clk 0:02:47.6]} 17... Nxd5 {[%clk 0:02:40.7]} 18. exd5 {[%clk
0:02:48.5]} 18... Nf6 {[%clk 0:02:41.6]} 19. Qb3 {[%clk 0:02:30.7]} 19... Bc5
{[%clk 0:02:33.3]} 20. Qxb5 {[%clk 0:02:15]} 20... Ng4 {[%clk 0:02:19.2]} 21.
Be3 {[%clk 0:01:58]} 21... Bxe3 {[%clk 0:02:00.5]} 22. fxe3 {[%clk 0:01:58.9]}
22... Nxe3 {[%clk 0:02:00.7]} 23. d6 {[%clk 0:01:57.6]} 23... Qb8 {[%clk
0:01:52.4]} 24. d7 {[%clk 0:01:38.8]} 24... Rd8 {[%clk 0:01:51.9]} 25. Nxe5
{[%clk 0:01:26.1]} 25... Bxg2 {[%clk 0:01:45.1]} 26. Qxb8 {[%clk 0:01:25.7]}
26... Raxb8 {[%clk 0:01:43]} 27. Rd3 {[%clk 0:01:26.3]} 27... Nc2 {[%clk
0:01:21]} 28. Kxg2 {[%clk 0:01:10.1]} 28... Rxb2 {[%clk 0:01:17.9]} 29. Kh3
{[%clk 0:00:52.1]} 29... Nxa1 {[%clk 0:01:12.7]} 30. Nc6 {[%clk 0:00:52.6]}
30... Rxd7 {[%clk 0:01:10.8]} 31. Rxd7 {[%clk 0:00:53.5]} 31... h5 {[%clk
0:01:03.1]} 32. Nxa5 {[%clk 0:00:51.4]} 32... g5 {[%clk 0:00:57.8]} 33. Nc4
{[%clk 0:00:46.6]} 33... g4+ {[%clk 0:00:42.8]} 34. Kh4 {[%clk 0:00:47]} 34...
Rxh2+ {[%clk 0:00:42.8]} 35. Kg5 {[%clk 0:00:47.7]} 35... Nb3 {[%clk 0:00:43.4]}
36. Nd6 {[%clk 0:00:34.3]} 36... Nc5 {[%clk 0:00:41.4]} 37. Rd8+ {[%clk
0:00:28.7]} 37... Kg7 {[%clk 0:00:33.1]} 38. Ne8+ {[%clk 0:00:25]} 38... Kf8
{[%clk 0:00:32.9]} 39. Nf6+ {[%clk 0:00:22.8]} 39... Ke7 {[%clk 0:00:32.7]} 40.
Re8+ {[%clk 0:00:23.2]} 40... Kd6 {[%clk 0:00:32.5]} 41. Nxh5 {[%clk 0:00:18.3]}
41... Ne6+ {[%clk 0:00:21.1]} 42. Kxg4 {[%clk 0:00:18.5]} 42... f5+ {[%clk
0:00:21.4]} 43. Kxf5 {[%clk 0:00:18.9]} 43... Rxh5+ {[%clk 0:00:20.7]} 44. Kg4
{[%clk 0:00:19.6]} 44... Rc5 {[%clk 0:00:20.6]} 45. Ra8 {[%clk 0:00:18.5]} 45...
Rc4+ {[%clk 0:00:20.5]} 46. Kh3 {[%clk 0:00:18.1]} 46... Rxc3 {[%clk 0:00:20.2]}
47. Ra6+ {[%clk 0:00:17.1]} 47... Ke5 {[%clk 0:00:20.1]} 48. Ra5+ {[%clk
0:00:17.9]} 48... Ke4 {[%clk 0:00:19.9]} 49. Kg4 {[%clk 0:00:16.3]} 49... Rc8
{[%clk 0:00:18.8]} 50. Ra4+ {[%clk 0:00:16.2]} 50... Nd4 {[%clk 0:00:19.1]} 51.
Ra7 {[%clk 0:00:15.3]} 51... Rg8+ {[%clk 0:00:18.5]} 52. Kh3 {[%clk 0:00:15.8]}
52... Nf5 {[%clk 0:00:16.8]} 53. g4 {[%clk 0:00:12.7]} 53... Kf3 {[%clk
0:00:13.7]} 54. Kh2 {[%clk 0:00:05.5]} 54... Rxg4 {[%clk 0:00:08.1]} 55. Ra3+
{[%clk 0:00:01.9]} 55... Ne3 {[%clk 0:00:07.7]} 56. Ra8 {[%clk 0:00:02.7]} 56...
Rg5 {[%clk 0:00:05.9]} 57. Re8 {[%clk 0:00:02]} 57... Kf2 {[%clk 0:00:04.1]} 58.
Rf8+ {[%clk 0:00:01.9]} 58... Nf5 {[%clk 0:00:04.3]} 59. Rh8 {[%clk 0:00:02.8]}
59... Rg2+ {[%clk 0:00:03.8]} 60. Kh3 {[%clk 0:00:03.5]} 60... Rg3+ {[%clk
0:00:04]} 61. Kh2 {[%clk 0:00:04.2]} 61... Nd4 {[%clk 0:00:04.9]} 0-1

[Event "Late-Titled-Tuesday-Blitz-August-29-2023"]
[Site "Chess.com"]
[Date "2023.08.29"]
[Round "3"]
[White "ArmanGhevondyanchess"]
[Black "Mindhunter08"]
[Result "1/2-1/2"]
[WhiteElo "2219"]
[BlackElo "2449"]
[TimeControl "180+1"]
[EndTime "14:29:07 PDT"]
[Termination "Game drawn by repetition"]

1. Nf3 {[%clk 0:02:57.7]} 1... d5 {[%clk 0:02:59.2]} 2. g3 {[%clk 0:02:57.5]}
2... g6 {[%clk 0:02:59.1]} 3. Bg2 {[%clk 0:02:57.3]} 3... Bg7 {[%clk 0:02:59.8]}
4. d4 {[%clk 0:02:57.7]} 4... c6 {[%clk 0:03:00]} 5. Nc3 {[%clk 0:02:56.5]} 5...
Nf6 {[%clk 0:02:56.3]} 6. Bf4 {[%clk 0:02:53.5]} 6... O-O {[%clk 0:02:55.9]} 7.
h4 {[%clk 0:02:53.2]} 7... Nbd7 {[%clk 0:02:50.3]} 8. Ne5 {[%clk 0:02:50.8]}
8... Nh5 {[%clk 0:02:42.2]} 9. Nxd7 {[%clk 0:02:45.6]} 9... Bxd7 {[%clk
0:02:31.2]} 10. Be3 {[%clk 0:02:34.1]} 10... e5 {[%clk 0:02:26.3]} 11. Bf3
{[%clk 0:02:21.6]} 11... Re8 {[%clk 0:02:10]} 12. Bxh5 {[%clk 0:01:59.2]} 12...
gxh5 {[%clk 0:02:10]} 13. Qd2 {[%clk 0:01:53.6]} 13... b5 {[%clk 0:01:59.2]} 14.
a3 {[%clk 0:01:19.7]} 14... a5 {[%clk 0:01:57.2]} 15. O-O {[%clk 0:01:03.8]}
15... Qf6 {[%clk 0:01:44.1]} 16. Bg5 {[%clk 0:00:59.7]} 16... Qg6 {[%clk
0:01:35.8]} 17. dxe5 {[%clk 0:00:51.3]} 17... Bxe5 {[%clk 0:01:31]} 18. Bf4
{[%clk 0:00:50.2]} 18... Bg7 {[%clk 0:01:26.8]} 19. Rfe1 {[%clk 0:00:44.9]}
19... Bf5 {[%clk 0:01:11.9]} 20. Rac1 {[%clk 0:00:38.7]} 20... Rad8 {[%clk
0:01:04.4]} 21. Bc7 {[%clk 0:00:29.4]} 21... Rd7 {[%clk 0:01:02.8]} 22. Bxa5
{[%clk 0:00:28.8]} 22... d4 {[%clk 0:00:58.9]} 23. Na2 {[%clk 0:00:20.5]} 23...
Bh6 {[%clk 0:00:57.3]} 24. Qb4 {[%clk 0:00:20.9]} 24... Bxc1 {[%clk 0:00:51.5]}
25. Nxc1 {[%clk 0:00:21.8]} 25... Bxc2 {[%clk 0:00:45.6]} 26. Qd2 {[%clk
0:00:19.2]} 26... Bf5 {[%clk 0:00:38.8]} 27. Bb6 {[%clk 0:00:16.6]} 27... Qf6
{[%clk 0:00:31.6]} 28. Nb3 {[%clk 0:00:15.9]} 28... d3 {[%clk 0:00:27.4]} 29.
Nc5 {[%clk 0:00:14.6]} 29... Rd5 {[%clk 0:00:25.7]} 30. e4 {[%clk 0:00:14.6]}
30... Rde5 {[%clk 0:00:17.1]} 31. f4 {[%clk 0:00:12.7]} 31... R5e7 {[%clk
0:00:13.9]} 32. e5 {[%clk 0:00:11.6]} 32... Qg6 {[%clk 0:00:13.9]} 33. Re3
{[%clk 0:00:09.9]} 33... Rb8 {[%clk 0:00:13.4]} 34. Ba5 {[%clk 0:00:10.2]} 34...
h6 {[%clk 0:00:10.8]} 35. Bc3 {[%clk 0:00:10.3]} 35... Kh7 {[%clk 0:00:10.6]}
36. Qf2 {[%clk 0:00:07.2]} 36... Rg8 {[%clk 0:00:10.2]} 37. Kh2 {[%clk
0:00:06.4]} 37... Qg4 {[%clk 0:00:10.5]} 38. Nxd3 {[%clk 0:00:05.4]} 38... Qd1
{[%clk 0:00:08.9]} 39. Ne1 {[%clk 0:00:05.1]} 39... Rd7 {[%clk 0:00:07.6]} 40.
Re2 {[%clk 0:00:04.8]} 40... Qb1 {[%clk 0:00:06.9]} 41. Nf3 {[%clk 0:00:03.8]}
41... Rd1 {[%clk 0:00:06.1]} 42. Ne1 {[%clk 0:00:03.2]} 42... Rgd8 {[%clk
0:00:05.6]} 43. e6 {[%clk 0:00:03.4]} 43... fxe6 {[%clk 0:00:05.7]} 44. Qe3
{[%clk 0:00:03.8]} 44... R8d5 {[%clk 0:00:04]} 45. Qa7+ {[%clk 0:00:03.5]} 45...
Rd7 {[%clk 0:00:03.4]} 46. Qe3 {[%clk 0:00:03.3]} 46... Kg6 {[%clk 0:00:01.6]}
47. Qe5 {[%clk 0:00:03.3]} 47... Rf7 {[%clk 0:00:01.9]} 48. Bd4 {[%clk
0:00:01.4]} 48... Qc1 {[%clk 0:00:01.5]} 49. Qe3 {[%clk 0:00:01.4]} 49... Qxe3
{[%clk 0:00:01.5]} 50. Bxe3 {[%clk 0:00:02.3]} 50... Rb1 {[%clk 0:00:02.3]} 51.
Bd4 {[%clk 0:00:02.4]} 51... Rd7 {[%clk 0:00:02.9]} 52. Bc3 {[%clk 0:00:03]}
52... Rdd1 {[%clk 0:00:03.4]} 53. Nf3 {[%clk 0:00:03.3]} 53... Bg4 {[%clk
0:00:03.8]} 54. Ne5+ {[%clk 0:00:02.2]} 54... Kf5 {[%clk 0:00:04.3]} 55. Nxg4
{[%clk 0:00:03.1]} 55... Kxg4 {[%clk 0:00:04.8]} 56. Kg2 {[%clk 0:00:03.4]}
56... Rg1+ {[%clk 0:00:05]} 57. Kf2 {[%clk 0:00:04.3]} 57... Rbf1+ {[%clk
0:00:05.4]} 58. Ke3 {[%clk 0:00:05.2]} 58... Rxg3+ {[%clk 0:00:05.5]} 59. Ke4
{[%clk 0:00:05.9]} 59... Rxf4+ {[%clk 0:00:05.8]} 60. Ke5 {[%clk 0:00:06.7]}
60... Rf5+ {[%clk 0:00:05.5]} 61. Kxe6 {[%clk 0:00:06.9]} 61... Rgf3 {[%clk
0:00:05.8]} 62. Be5 {[%clk 0:00:06.5]} 62... Kxh4 {[%clk 0:00:05.1]} 63. Rh2+
{[%clk 0:00:06.8]} 63... Kg4 {[%clk 0:00:05.1]} 64. Rg2+ {[%clk 0:00:07.5]}
64... Kh3 {[%clk 0:00:05.7]} 65. Rh2+ {[%clk 0:00:08]} 65... Kg4 {[%clk
0:00:05.8]} 66. Rg2+ {[%clk 0:00:08.7]} 66... Kh4 {[%clk 0:00:05.5]} 67. Rh2+
{[%clk 0:00:09.4]} 67... Kg5 {[%clk 0:00:06.4]} 68. Rg2+ {[%clk 0:00:09.6]}
68... Kh4 {[%clk 0:00:05.6]} 69. Rh2+ {[%clk 0:00:09.8]} 1/2-1/2

[Event "Late-Titled-Tuesday-Blitz-August-29-2023"]
[Site "Chess.com"]
[Date "2023.08.29"]
[Round "3"]
[White "CheckThis4"]
[Black "Sinquefield"]
[Result "1-0"]
[WhiteElo "2636"]
[BlackElo "2440"]
[TimeControl "180+1"]
[EndTime "14:29:15 PDT"]
[Termination "CheckThis4 won on time"]

1. e4 {[%clk 0:03:00.9]} 1... e6 {[%clk 0:02:02.4]} 2. d4 {[%clk 0:02:59.9]}
2... d5 {[%clk 0:02:03.3]} 3. Nd2 {[%clk 0:02:59.8]} 3... Nf6 {[%clk 0:02:01.4]}
4. e5 {[%clk 0:02:59.8]} 4... Nfd7 {[%clk 0:02:01.9]} 5. Ngf3 {[%clk 0:03:00.3]}
5... c5 {[%clk 0:02:02.4]} 6. c3 {[%clk 0:03:00.9]} 6... Nc6 {[%clk 0:02:02.7]}
7. Bd3 {[%clk 0:03:01.5]} 7... cxd4 {[%clk 0:02:03.1]} 8. cxd4 {[%clk
0:03:00.7]} 8... Qb6 {[%clk 0:02:01.6]} 9. O-O {[%clk 0:03:00.5]} 9... Nxd4
{[%clk 0:02:01.7]} 10. Nxd4 {[%clk 0:03:00.5]} 10... Qxd4 {[%clk 0:02:02.6]} 11.
Nf3 {[%clk 0:03:00.8]} 11... Qb6 {[%clk 0:02:03]} 12. Qa4 {[%clk 0:03:00.5]}
12... Qb4 {[%clk 0:02:00.8]} 13. Qc2 {[%clk 0:03:00.4]} 13... Nc5 {[%clk
0:02:01.1]} 14. Bd2 {[%clk 0:02:56]} 14... Qa4 {[%clk 0:02:00.8]} 15. b3 {[%clk
0:02:55.5]} 15... Qd7 {[%clk 0:02:00.4]} 16. Be2 {[%clk 0:02:54.5]} 16... b6
{[%clk 0:02:00.7]} 17. Nd4 {[%clk 0:02:44.9]} 17... Ba6 {[%clk 0:01:54.9]} 18.
Bxa6 {[%clk 0:02:38.4]} 18... Nxa6 {[%clk 0:01:55.8]} 19. Be3 {[%clk 0:02:11.8]}
19... Be7 {[%clk 0:01:33.2]} 20. a3 {[%clk 0:01:52.7]} 20... Nc5 {[%clk
0:01:27.6]} 21. b4 {[%clk 0:01:50.7]} 21... Ne4 {[%clk 0:01:13.9]} 22. f3 {[%clk
0:01:48]} 22... Rc8 {[%clk 0:01:09.9]} 23. Qd3 {[%clk 0:01:41.9]} 23... Nc3
{[%clk 0:00:54.9]} 24. Rfc1 {[%clk 0:01:37]} 24... Na4 {[%clk 0:00:54.2]} 25.
Rxc8+ {[%clk 0:01:17.4]} 25... Qxc8 {[%clk 0:00:55.1]} 26. Rc1 {[%clk
0:01:16.2]} 26... Qd7 {[%clk 0:00:54.7]} 27. Qa6 {[%clk 0:00:45.9]} 27... O-O
{[%clk 0:00:52]} 28. Rc2 {[%clk 0:00:44.9]} 28... f6 {[%clk 0:00:27.3]} 29. Nb5
{[%clk 0:00:39.9]} 29... fxe5 {[%clk 0:00:15.8]} 30. Rc7 {[%clk 0:00:31.1]}
30... Qe8 {[%clk 0:00:11.9]} 31. Qxa4 {[%clk 0:00:31.3]} 31... d4 {[%clk
0:00:12]} 32. Qxa7 {[%clk 0:00:22]} 32... Bf6 {[%clk 0:00:09.8]} 33. Nd6 {[%clk
0:00:18.2]} 33... Qd8 {[%clk 0:00:09]} 34. Rd7 {[%clk 0:00:18.2]} 34... Qb8
{[%clk 0:00:06.6]} 35. Qxb8 {[%clk 0:00:16.9]} 35... Rxb8 {[%clk 0:00:07.5]} 36.
Bd2 {[%clk 0:00:17]} 36... h6 {[%clk 0:00:07]} 37. Ne4 {[%clk 0:00:16.8]} 37...
Bd8 {[%clk 0:00:06]} 38. Kf1 {[%clk 0:00:16.3]} 38... Ra8 {[%clk 0:00:06.1]} 39.
Bc1 {[%clk 0:00:15.2]} 39... Kf8 {[%clk 0:00:04.3]} 40. Ke2 {[%clk 0:00:14.1]}
40... Ke8 {[%clk 0:00:04.6]} 41. Rxg7 {[%clk 0:00:13.9]} 41... Rc8 {[%clk
0:00:04.8]} 42. Bxh6 {[%clk 0:00:12.1]} 42... Rc2+ {[%clk 0:00:04.3]} 43. Bd2
{[%clk 0:00:12.1]} 43... Ra2 {[%clk 0:00:05.2]} 44. Rg8+ {[%clk 0:00:10.6]}
44... Ke7 {[%clk 0:00:05]} 45. Rg7+ {[%clk 0:00:11.1]} 45... Ke8 {[%clk
0:00:05.4]} 46. Nd6+ {[%clk 0:00:11.3]} 46... Kf8 {[%clk 0:00:05.4]} 47. Rf7+
{[%clk 0:00:11.3]} 47... Kg8 {[%clk 0:00:05.9]} 48. Rd7 {[%clk 0:00:10.8]} 48...
Bg5 {[%clk 0:00:05.9]} 49. Ne4 {[%clk 0:00:11.5]} 49... Bf4 {[%clk 0:00:05.5]}
50. g3 {[%clk 0:00:11.1]} 50... Bh6 {[%clk 0:00:05.3]} 51. h4 {[%clk 0:00:10.3]}
51... Bxd2 {[%clk 0:00:04]} 52. Nxd2 {[%clk 0:00:10.2]} 52... Rxa3 {[%clk
0:00:04.9]} 53. Ne4 {[%clk 0:00:10.4]} 53... Re3+ {[%clk 0:00:05.2]} 54. Kf2
{[%clk 0:00:10.6]} 54... Rb3 {[%clk 0:00:06.1]} 55. h5 {[%clk 0:00:10.7]} 55...
Rxb4 {[%clk 0:00:05.8]} 56. h6 {[%clk 0:00:11.1]} 56... Rb2+ {[%clk 0:00:06.7]}
57. Ke1 {[%clk 0:00:10.5]} 57... Rb1+ {[%clk 0:00:07.1]} 58. Ke2 {[%clk
0:00:10.7]} 58... Rh1 {[%clk 0:00:08]} 59. Nf6+ {[%clk 0:00:10]} 59... Kf8
{[%clk 0:00:07.7]} 60. h7 {[%clk 0:00:10.2]} 60... b5 {[%clk 0:00:05.6]} 61.
Rd8+ {[%clk 0:00:09.9]} 61... Ke7 {[%clk 0:00:05.9]} 62. h8=Q {[%clk 0:00:09.6]}
62... Rxh8 {[%clk 0:00:05.6]} 63. Rxh8 {[%clk 0:00:10.5]} 63... Kxf6 {[%clk
0:00:06]} 64. Kd3 {[%clk 0:00:10.7]} 64... Kf5 {[%clk 0:00:06.9]} 65. Rf8+
{[%clk 0:00:10.1]} 65... Kg6 {[%clk 0:00:06.3]} 66. Ke4 {[%clk 0:00:11]} 66...
Kg7 {[%clk 0:00:06.1]} 67. Rb8 {[%clk 0:00:11.5]} 67... Kf6 {[%clk 0:00:06.6]}
68. Rxb5 {[%clk 0:00:11.5]} 68... d3 {[%clk 0:00:07.5]} 69. Kxd3 {[%clk
0:00:11.3]} 69... Kf5 {[%clk 0:00:07.4]} 70. Ke3 {[%clk 0:00:11.6]} 70... Kf6
{[%clk 0:00:06.6]} 71. Ke4 {[%clk 0:00:12.2]} 71... Kg5 {[%clk 0:00:07.5]} 72.
Rxe5+ {[%clk 0:00:12.1]} 72... Kf6 {[%clk 0:00:08.4]} 73. Rb5 {[%clk 0:00:12.1]}
1-0